[Event "*** Titled Tuesday Blitz"]
[Site "Chess.com"]
[Date "2020.05.05"]
[Round "8"]
[White "Chessmatus"]
[Black "louis198"]
[Result "1-0"]
[WhiteElo "2399"]
[BlackElo "2527"]
[TimeControl "180+1"]
[EndTime "11:33:22 PDT"]
[Termination "Chessmatus won by resignation"]

1. e4 {[%clk 0:03:00.9]} 1... e6 {[%clk 0:03:00]} 2. d4 {[%clk 0:03:00.6]} 2...
d5 {[%clk 0:03:00.9]} 3. Nc3 {[%clk 0:03:01.1]} 3... dxe4 {[%clk 0:03:01.2]} 4.
Nxe4 {[%clk 0:03:02]} 4... Bd7 {[%clk 0:03:01.8]} 5. Nf3 {[%clk 0:03:00.8]} 5...
Bc6 {[%clk 0:03:02.1]} 6. Bd3 {[%clk 0:03:01.4]} 6... Nd7 {[%clk 0:03:02]} 7. c3
{[%clk 0:03:01.6]} 7... Ngf6 {[%clk 0:03:00]} 8. Nxf6+ {[%clk 0:03:01.8]} 8...
Nxf6 {[%clk 0:03:00.3]} 9. Bf4 {[%clk 0:03:01.8]} 9... Bd6 {[%clk 0:02:52.7]}
10. Ne5 {[%clk 0:03:01.2]} 10... Bxe5 {[%clk 0:02:23]} 11. Bxe5 {[%clk
0:03:01.1]} 11... Qe7 {[%clk 0:01:55.6]} 12. Qe2 {[%clk 0:02:58.2]} 12... O-O-O
{[%clk 0:01:54.5]} 13. O-O {[%clk 0:02:54.9]} 13... h5 {[%clk 0:01:52]} 14. b4
{[%clk 0:02:51]} 14... Rh6 {[%clk 0:01:35.2]} 15. b5 {[%clk 0:02:49.3]} 15...
Be8 {[%clk 0:01:35.4]} 16. a4 {[%clk 0:02:41.1]} 16... Ng4 {[%clk 0:01:35.3]}
17. Bxg7 {[%clk 0:02:30.8]} 17... Rg6 {[%clk 0:01:02.2]} 18. Bxg6 {[%clk
0:02:30.1]} 18... fxg6 {[%clk 0:01:03.1]} 19. Be5 {[%clk 0:02:30.6]} 19... g5
{[%clk 0:00:59]} 20. a5 {[%clk 0:02:30.5]} 20... Nxe5 {[%clk 0:00:57.4]} 21.
dxe5 {[%clk 0:02:22.8]} 21... Rd5 {[%clk 0:00:57.5]} 22. c4 {[%clk 0:02:21.6]}
22... Rd4 {[%clk 0:00:57.9]} 23. a6 {[%clk 0:02:20.7]} 23... Qc5 {[%clk
0:00:54]} 24. axb7+ {[%clk 0:02:20.3]} 24... Kxb7 {[%clk 0:00:53.3]} 25. Ra4
{[%clk 0:01:53.3]} 25... Bg6 {[%clk 0:00:43.6]} 26. Rfa1 {[%clk 0:01:49.2]}
26... Re4 {[%clk 0:00:41.5]} 27. Rxa7+ {[%clk 0:01:42.6]} 27... Kc8 {[%clk
0:00:41.6]} 28. Ra8+ {[%clk 0:01:39.4]} 28... Kd7 {[%clk 0:00:41.9]} 29. Qd2+
{[%clk 0:01:37.1]} 29... Rd4 {[%clk 0:00:40.9]} 30. Qxg5 {[%clk 0:01:37.3]} 1-0

[Event "*** Titled Tuesday Blitz"]
[Site "Chess.com"]
[Date "2020.05.05"]
[Round "8"]
[White "NodariousBIG"]
[Black "Gubajdullin"]
[Result "0-1"]
[WhiteElo "2705"]
[BlackElo "2572"]
[TimeControl "180+1"]
[EndTime "11:33:29 PDT"]
[Termination "Gubajdullin won by resignation"]

1. e4 {[%clk 0:03:00.9]} 1... c5 {[%clk 0:02:59.6]} 2. c3 {[%clk 0:03:00.5]}
2... d5 {[%clk 0:02:55.7]} 3. exd5 {[%clk 0:03:00.7]} 3... Qxd5 {[%clk
0:02:55.6]} 4. d4 {[%clk 0:03:01.3]} 4... g6 {[%clk 0:02:49.9]} 5. Nf3 {[%clk
0:03:01.2]} 5... Bg7 {[%clk 0:02:43.1]} 6. Be3 {[%clk 0:03:01.3]} 6... Nh6
{[%clk 0:02:32.5]} 7. c4 {[%clk 0:02:53]} 7... Qd6 {[%clk 0:02:29.4]} 8. Bxh6
{[%clk 0:02:44.9]} 8... Bxh6 {[%clk 0:02:26.6]} 9. d5 {[%clk 0:02:45.3]} 9...
Qb6 {[%clk 0:02:19.8]} 10. Qb3 {[%clk 0:02:41.9]} 10... Qxb3 {[%clk 0:02:14.6]}
11. axb3 {[%clk 0:02:42.8]} 11... Na6 {[%clk 0:02:10.6]} 12. Be2 {[%clk
0:02:12.7]} 12... Bc1 {[%clk 0:02:06.8]} 13. O-O {[%clk 0:01:57.7]} 13... Bxb2
{[%clk 0:02:04.7]} 14. Ra2 {[%clk 0:01:58.1]} 14... Bf6 {[%clk 0:01:59.2]} 15.
Nbd2 {[%clk 0:01:54.4]} 15... Nb4 {[%clk 0:01:55]} 16. Ra3 {[%clk 0:01:49.7]}
16... Bb2 {[%clk 0:01:50.3]} 17. Ra4 {[%clk 0:01:48.5]} 17... Bd7 {[%clk
0:01:50]} 18. Rxb4 {[%clk 0:01:47.6]} 18... cxb4 {[%clk 0:01:47.1]} 19. Ne4
{[%clk 0:01:47.1]} 19... a5 {[%clk 0:01:42.3]} 20. Nc5 {[%clk 0:01:44.5]} 20...
b6 {[%clk 0:01:37.6]} 21. Nd3 {[%clk 0:01:44.6]} 21... Bc3 {[%clk 0:01:29.5]}
22. Nde5 {[%clk 0:01:44.6]} 22... a4 {[%clk 0:01:26.4]} 23. Nxd7 {[%clk
0:01:44.6]} 23... Kxd7 {[%clk 0:01:25.4]} 24. bxa4 {[%clk 0:01:44.8]} 24... b3
{[%clk 0:01:23.5]} 25. Rb1 {[%clk 0:01:41.6]} 25... b2 {[%clk 0:01:19.1]} 26.
Bd1 {[%clk 0:01:40.8]} 26... Rhc8 {[%clk 0:01:15.5]} 27. Bb3 {[%clk 0:01:40.8]}
27... b5 {[%clk 0:01:12]} 28. cxb5 {[%clk 0:01:39.5]} 28... Bf6 {[%clk
0:01:06.6]} 29. Nd2 {[%clk 0:01:23.1]} 29... Rc1+ {[%clk 0:01:02.7]} 30. Bd1
{[%clk 0:01:23.2]} 30... Rxa4 {[%clk 0:01:02.6]} 31. f3 {[%clk 0:01:23.6]} 31...
Ra1 {[%clk 0:00:54]} 0-1

[Event "*** Titled Tuesday Blitz"]
[Site "Chess.com"]
[Date "2020.05.05"]
[Round "8"]
[White "Diego_FloresQ"]
[Black "LizaSolovyova"]
[Result "1-0"]
[WhiteElo "2431"]
[BlackElo "2542"]
[TimeControl "180+1"]
[EndTime "11:33:31 PDT"]
[Termination "Diego_FloresQ won by resignation"]

1. e4 {[%clk 0:03:00.9]} 1... e5 {[%clk 0:00:08.1]} 2. Nf3 {[%clk 0:02:59.3]}
2... d6 {[%clk 0:00:08.4]} 3. d4 {[%clk 0:02:58.9]} 3... Qe7 {[%clk 0:00:08.8]}
4. Nc3 {[%clk 0:02:57.4]} 4... c6 {[%clk 0:00:08.8]} 5. Bc4 {[%clk 0:02:57.3]}
5... h6 {[%clk 0:00:09.3]} 6. O-O {[%clk 0:02:52.3]} 6... Nf6 {[%clk 0:00:08.7]}
7. h3 {[%clk 0:02:48.3]} 7... g5 {[%clk 0:00:09.1]} 8. Bb3 {[%clk 0:02:33.8]}
8... g4 {[%clk 0:00:09.4]} 9. hxg4 {[%clk 0:02:32.4]} 9... Bxg4 {[%clk
0:00:10.3]} 10. Qd3 {[%clk 0:02:32.4]} 10... Nbd7 {[%clk 0:00:08.2]} 11. Ne2
{[%clk 0:02:32.8]} 11... O-O-O {[%clk 0:00:07.7]} 12. Ng3 {[%clk 0:02:33.3]}
12... Rg8 {[%clk 0:00:06.6]} 13. Nh4 {[%clk 0:02:33.3]} 13... Kb8 {[%clk
0:00:04.4]} 14. Be3 {[%clk 0:02:29.9]} 14... exd4 {[%clk 0:00:04.2]} 15. Qxd4
{[%clk 0:02:29.5]} 15... Nc5 {[%clk 0:00:04.6]} 16. Nhf5 {[%clk 0:02:28.8]}
16... Bxf5 {[%clk 0:00:04.6]} 17. Nxf5 {[%clk 0:02:29.5]} 17... Qe5 {[%clk
0:00:05.2]} 18. Bxf7 {[%clk 0:02:28]} 18... Rh8 {[%clk 0:00:04.1]} 19. Qxe5
{[%clk 0:02:23.9]} 19... dxe5 {[%clk 0:00:05]} 20. f3 {[%clk 0:02:23.3]} 20...
b6 {[%clk 0:00:04.5]} 21. Rad1 {[%clk 0:02:23.4]} 21... Rc8 {[%clk 0:00:04.4]}
22. a3 {[%clk 0:02:12.4]} 22... a6 {[%clk 0:00:04.4]} 23. Bf2 {[%clk 0:02:11.9]}
23... a5 {[%clk 0:00:04.6]} 24. Bg3 {[%clk 0:02:12.1]} 24... Ka7 {[%clk
0:00:04.4]} 25. Bxe5 {[%clk 0:02:10.1]} 25... Ncd7 {[%clk 0:00:04.1]} 26. Rxd7+
{[%clk 0:02:07.8]} 26... Nxd7 {[%clk 0:00:03.7]} 27. Bxh8 {[%clk 0:02:08.7]}
27... Bc5+ {[%clk 0:00:04.2]} 28. Bd4 {[%clk 0:02:07.7]} 1-0

[Event "*** Titled Tuesday Blitz"]
[Site "Chess.com"]
[Date "2020.05.05"]
[Round "8"]
[White "Shukh_Nikolay"]
[Black "pgradalski"]
[Result "1-0"]
[WhiteElo "2508"]
[BlackElo "2199"]
[TimeControl "180+1"]
[EndTime "11:33:34 PDT"]
[Termination "Shukh_Nikolay won by resignation"]

1. e4 {[%clk 0:03:00.9]} 1... e6 {[%clk 0:02:59.9]} 2. d4 {[%clk 0:03:00.2]}
2... d5 {[%clk 0:03:00]} 3. Nc3 {[%clk 0:02:59.8]} 3... Nc6 {[%clk 0:02:59.2]}
4. Nf3 {[%clk 0:02:59]} 4... Nf6 {[%clk 0:02:58.3]} 5. e5 {[%clk 0:02:58.5]}
5... Nd7 {[%clk 0:02:57.6]} 6. Bb5 {[%clk 0:02:35.4]} 6... a6 {[%clk 0:02:55.9]}
7. Be2 {[%clk 0:02:31.3]} 7... f6 {[%clk 0:02:48]} 8. exf6 {[%clk 0:02:30.4]}
8... Qxf6 {[%clk 0:02:45.4]} 9. O-O {[%clk 0:02:29.7]} 9... Bd6 {[%clk
0:02:43.5]} 10. Be3 {[%clk 0:02:20.7]} 10... O-O {[%clk 0:02:40.6]} 11. Qd2
{[%clk 0:02:20]} 11... h6 {[%clk 0:02:25.1]} 12. g3 {[%clk 0:02:06.4]} 12... b5
{[%clk 0:02:24.5]} 13. Nh4 {[%clk 0:01:59.4]} 13... g5 {[%clk 0:01:56.7]} 14.
Ng2 {[%clk 0:01:58.3]} 14... b4 {[%clk 0:01:56.1]} 15. Nd1 {[%clk 0:01:54.9]}
15... e5 {[%clk 0:01:46.9]} 16. dxe5 {[%clk 0:01:49.2]} 16... Ndxe5 {[%clk
0:01:46.9]} 17. f4 {[%clk 0:01:39.7]} 17... Nc4 {[%clk 0:01:19.9]} 18. Qxd5+
{[%clk 0:01:20.6]} 18... Be6 {[%clk 0:01:04.6]} 19. Qxc6 {[%clk 0:01:20]} 19...
Nxe3 {[%clk 0:01:02.4]} 20. Ndxe3 {[%clk 0:01:19.1]} 20... Qxb2 {[%clk
0:00:56.2]} 21. Bc4 {[%clk 0:01:15]} 21... Rae8 {[%clk 0:00:43.5]} 22. Bxe6+
{[%clk 0:01:14.5]} 22... Rxe6 {[%clk 0:00:42.9]} 23. Qd5 {[%clk 0:01:14.8]} 1-0

[Event "*** Titled Tuesday Blitz"]
[Site "Chess.com"]
[Date "2020.05.05"]
[Round "8"]
[White "saraswathii"]
[Black "swisspower96"]
[Result "0-1"]
[WhiteElo "2340"]
[BlackElo "2608"]
[TimeControl "180+1"]
[EndTime "11:33:35 PDT"]
[Termination "swisspower96 won by resignation"]

1. e4 {[%clk 0:03:00.9]} 1... c5 {[%clk 0:02:59.5]} 2. Nf3 {[%clk 0:03:00]} 2...
Nc6 {[%clk 0:02:59.9]} 3. d3 {[%clk 0:03:00.2]} 3... g6 {[%clk 0:02:59.6]} 4. g3
{[%clk 0:03:00.4]} 4... Bg7 {[%clk 0:02:59.9]} 5. Bg2 {[%clk 0:03:00.3]} 5... d6
{[%clk 0:03:00.3]} 6. O-O {[%clk 0:03:00.1]} 6... Nf6 {[%clk 0:03:00.5]} 7. c3
{[%clk 0:03:00.4]} 7... O-O {[%clk 0:03:00.1]} 8. Qe2 {[%clk 0:02:59.9]} 8...
Rb8 {[%clk 0:02:57.5]} 9. d4 {[%clk 0:02:58]} 9... b5 {[%clk 0:02:46.5]} 10. e5
{[%clk 0:02:55.5]} 10... Nd5 {[%clk 0:02:46.6]} 11. dxc5 {[%clk 0:02:53]} 11...
dxe5 {[%clk 0:02:39.2]} 12. Rd1 {[%clk 0:02:52.3]} 12... e6 {[%clk 0:02:38.9]}
13. Nbd2 {[%clk 0:02:39.9]} 13... Qe7 {[%clk 0:02:32.9]} 14. Nb3 {[%clk
0:02:39.5]} 14... h6 {[%clk 0:02:27.5]} 15. Nfd2 {[%clk 0:02:32.4]} 15... f5
{[%clk 0:02:18.9]} 16. Nf1 {[%clk 0:02:30]} 16... e4 {[%clk 0:02:17.1]} 17. Ne3
{[%clk 0:02:28]} 17... Rd8 {[%clk 0:02:15.9]} 18. Nxd5 {[%clk 0:02:22.4]} 18...
exd5 {[%clk 0:02:15.5]} 19. Bf4 {[%clk 0:02:22.3]} 19... Rb7 {[%clk 0:02:13.7]}
20. Rd2 {[%clk 0:02:19.3]} 20... Ne5 {[%clk 0:02:11.7]} 21. Bxe5 {[%clk
0:02:17.3]} 21... Bxe5 {[%clk 0:02:09.3]} 22. Rad1 {[%clk 0:02:16.6]} 22... Be6
{[%clk 0:02:09.3]} 23. f4 {[%clk 0:02:03.4]} 23... Bf6 {[%clk 0:02:03.2]} 24.
Na5 {[%clk 0:02:00.1]} 24... Qxc5+ {[%clk 0:02:00.7]} 25. Kh1 {[%clk 0:01:58.3]}
25... Rbd7 {[%clk 0:01:59.5]} 26. Nb3 {[%clk 0:01:53.3]} 26... Qb6 {[%clk
0:01:58.8]} 27. Nd4 {[%clk 0:01:48.2]} 27... Bf7 {[%clk 0:01:58.9]} 28. h3
{[%clk 0:01:43.9]} 28... Bxd4 {[%clk 0:01:45.7]} 29. Rxd4 {[%clk 0:01:43.1]}
29... g5 {[%clk 0:01:46.5]} 30. fxg5 {[%clk 0:01:42]} 30... hxg5 {[%clk
0:01:47.4]} 31. Qe3 {[%clk 0:01:40.7]} 31... Qf6 {[%clk 0:01:47.2]} 32. Rf1
{[%clk 0:01:36.8]} 32... Be6 {[%clk 0:01:47.7]} 33. a3 {[%clk 0:01:31.6]} 33...
Rf8 {[%clk 0:01:46.8]} 34. Qd2 {[%clk 0:01:27.9]} 34... Rff7 {[%clk 0:01:37.5]}
35. Qe2 {[%clk 0:01:24.8]} 35... f4 {[%clk 0:01:33.4]} 36. Qxb5 {[%clk
0:01:15.7]} 36... f3 {[%clk 0:01:28.6]} 37. Kg1 {[%clk 0:01:12.4]} 37... Qe5
{[%clk 0:01:24.9]} 0-1

[Event "*** Titled Tuesday Blitz"]
[Site "Chess.com"]
[Date "2020.05.05"]
[Round "8"]
[White "Trickov"]
[Black "PawnEatingZombie"]
[Result "1-0"]
[WhiteElo "2291"]
[BlackElo "2148"]
[TimeControl "180+1"]
[EndTime "11:33:37 PDT"]
[Termination "Trickov won by resignation"]

1. d4 {[%clk 0:03:00.9]} 1... d5 {[%clk 0:02:59.4]} 2. Nf3 {[%clk 0:03:00.5]}
2... e6 {[%clk 0:02:59.3]} 3. g3 {[%clk 0:02:58.6]} 3... b5 {[%clk 0:02:58.3]}
4. Bg2 {[%clk 0:02:57.5]} 4... Nf6 {[%clk 0:02:58.3]} 5. a4 {[%clk 0:02:58]}
5... b4 {[%clk 0:02:58]} 6. c4 {[%clk 0:02:57.3]} 6... bxc3 {[%clk 0:02:57.8]}
7. Nxc3 {[%clk 0:02:57]} 7... Be7 {[%clk 0:02:50.9]} 8. O-O {[%clk 0:02:56.5]}
8... O-O {[%clk 0:02:49.8]} 9. Bf4 {[%clk 0:02:56.9]} 9... c6 {[%clk 0:02:40.4]}
10. Ne5 {[%clk 0:02:47.5]} 10... Ba6 {[%clk 0:02:35]} 11. Qc2 {[%clk 0:02:42.6]}
11... Nfd7 {[%clk 0:02:31.2]} 12. Nd3 {[%clk 0:02:34]} 12... Bf6 {[%clk
0:01:26.1]} 13. Be3 {[%clk 0:02:18.9]} 13... Re8 {[%clk 0:01:13.6]} 14. Rfd1
{[%clk 0:02:13.2]} 14... Nb6 {[%clk 0:01:04.6]} 15. Nc5 {[%clk 0:02:05.9]} 15...
Nc4 {[%clk 0:00:59.8]} 16. Bf4 {[%clk 0:02:00.4]} 16... Bc8 {[%clk 0:00:55.1]}
17. b3 {[%clk 0:01:55.9]} 17... Nd6 {[%clk 0:00:54.5]} 18. e4 {[%clk 0:01:51.1]}
18... dxe4 {[%clk 0:00:49.6]} 19. N3xe4 {[%clk 0:01:48.5]} 19... Nxe4 {[%clk
0:00:49]} 20. Nxe4 {[%clk 0:01:47.5]} 20... Bb7 {[%clk 0:00:40.5]} 21. Nc5
{[%clk 0:01:38]} 21... Qc8 {[%clk 0:00:19.6]} 22. Rac1 {[%clk 0:01:29.3]} 22...
Nd7 {[%clk 0:00:16]} 23. Nxb7 {[%clk 0:01:25.6]} 23... Qxb7 {[%clk 0:00:16.9]}
24. Bxc6 {[%clk 0:01:24.9]} 1-0

[Event "*** Titled Tuesday Blitz"]
[Site "Chess.com"]
[Date "2020.05.05"]
[Round "8"]
[White "OK97"]
[Black "KoustavChatterjee1"]
[Result "1-0"]
[WhiteElo "2726"]
[BlackElo "2598"]
[TimeControl "180+1"]
[EndTime "11:33:41 PDT"]
[Termination "OK97 won by resignation"]

1. e4 {[%clk 0:03:00.9]} 1... Nf6 {[%clk 0:02:59.5]} 2. e5 {[%clk 0:03:00.4]}
2... Nd5 {[%clk 0:02:59.4]} 3. d4 {[%clk 0:03:01]} 3... d6 {[%clk 0:02:59.6]} 4.
c4 {[%clk 0:03:01.2]} 4... Nb6 {[%clk 0:02:59.3]} 5. exd6 {[%clk 0:03:01.6]}
5... cxd6 {[%clk 0:03:00.2]} 6. Nc3 {[%clk 0:02:59.5]} 6... g6 {[%clk
0:03:00.4]} 7. Bd3 {[%clk 0:02:59]} 7... Bg7 {[%clk 0:03:00.3]} 8. Nge2 {[%clk
0:02:51.9]} 8... Nc6 {[%clk 0:02:59.2]} 9. Be3 {[%clk 0:02:47.4]} 9... O-O
{[%clk 0:02:53.6]} 10. O-O {[%clk 0:02:21.6]} 10... Nb4 {[%clk 0:02:52]} 11. b3
{[%clk 0:02:22.1]} 11... Nxd3 {[%clk 0:02:50.1]} 12. Qxd3 {[%clk 0:02:23]} 12...
Bf5 {[%clk 0:02:41.1]} 13. Qd2 {[%clk 0:02:22.1]} 13... Rc8 {[%clk 0:02:24.4]}
14. Rfe1 {[%clk 0:02:13.9]} 14... a6 {[%clk 0:02:03.1]} 15. d5 {[%clk
0:02:08.6]} 15... Nd7 {[%clk 0:02:00.9]} 16. Nd4 {[%clk 0:02:02]} 16... Ne5
{[%clk 0:01:54]} 17. Nxf5 {[%clk 0:02:01.6]} 17... gxf5 {[%clk 0:01:54.9]} 18.
Bd4 {[%clk 0:01:54.6]} 18... Qd7 {[%clk 0:01:45.2]} 19. a4 {[%clk 0:01:49.9]}
19... f4 {[%clk 0:01:36.9]} 20. Qxf4 {[%clk 0:01:43.1]} 20... Kh8 {[%clk
0:01:34.4]} 21. Re3 {[%clk 0:01:33.1]} 21... Rg8 {[%clk 0:01:25.4]} 22. Rae1
{[%clk 0:01:25]} 22... Bf6 {[%clk 0:01:09.3]} 23. Rg3 {[%clk 0:01:23.2]} 23...
Rxg3 {[%clk 0:01:06.5]} 24. hxg3 {[%clk 0:01:23.3]} 24... Rg8 {[%clk 0:01:03.8]}
25. Ne4 {[%clk 0:01:18.6]} 25... Rg4 {[%clk 0:01:03.4]} 26. Nxf6 {[%clk
0:01:12.6]} 26... Rxf4 {[%clk 0:00:56.9]} 27. Nxd7 {[%clk 0:01:08.9]} 27... Rxd4
{[%clk 0:00:57]} 28. Nxe5 {[%clk 0:01:08.9]} 28... dxe5 {[%clk 0:00:57.6]} 29.
Rxe5 {[%clk 0:01:09.1]} 1-0

[Event "*** Titled Tuesday Blitz"]
[Site "Chess.com"]
[Date "2020.05.05"]
[Round "8"]
[White "DanielMieles1985"]
[Black "diskeleven"]
[Result "1-0"]
[WhiteElo "2631"]
[BlackElo "2352"]
[TimeControl "180+1"]
[EndTime "11:33:41 PDT"]
[Termination "DanielMieles1985 won by resignation"]

1. e4 {[%clk 0:03:00.8]} 1... c5 {[%clk 0:03:00.1]} 2. Nf3 {[%clk 0:02:59.3]}
2... e6 {[%clk 0:03:01]} 3. d4 {[%clk 0:02:57.9]} 3... cxd4 {[%clk 0:03:01.9]}
4. Nxd4 {[%clk 0:02:57.4]} 4... a6 {[%clk 0:03:02.4]} 5. Nc3 {[%clk 0:02:54.3]}
5... Qc7 {[%clk 0:03:02.1]} 6. Bd3 {[%clk 0:02:54.1]} 6... Nf6 {[%clk
0:03:02.2]} 7. O-O {[%clk 0:02:53.4]} 7... d6 {[%clk 0:03:02.2]} 8. Be3 {[%clk
0:02:46.8]} 8... Nbd7 {[%clk 0:03:01.9]} 9. f4 {[%clk 0:02:46.4]} 9... g6 {[%clk
0:03:01.4]} 10. f5 {[%clk 0:02:32.3]} 10... e5 {[%clk 0:03:00.2]} 11. Nb3 {[%clk
0:02:24.1]} 11... b5 {[%clk 0:02:55.6]} 12. fxg6 {[%clk 0:02:17.5]} 12... hxg6
{[%clk 0:02:54.4]} 13. Qf3 {[%clk 0:02:07]} 13... Bb7 {[%clk 0:02:52.5]} 14. a4
{[%clk 0:01:51.3]} 14... b4 {[%clk 0:02:51.7]} 15. Nd5 {[%clk 0:01:51.8]} 15...
Bxd5 {[%clk 0:02:51.8]} 16. exd5 {[%clk 0:01:52.7]} 16... Be7 {[%clk 0:02:45.6]}
17. a5 {[%clk 0:01:52.3]} 17... e4 {[%clk 0:02:42.2]} 18. Bxe4 {[%clk
0:01:47.5]} 18... Ne5 {[%clk 0:02:42.4]} 19. Qf4 {[%clk 0:01:46.7]} 19... Nh5
{[%clk 0:02:32.2]} 20. Qf2 {[%clk 0:01:42.6]} 20... f5 {[%clk 0:02:32.4]} 21.
Bf3 {[%clk 0:01:30.1]} 21... Rc8 {[%clk 0:02:14.5]} 22. Nd4 {[%clk 0:01:26.5]}
22... f4 {[%clk 0:01:51.1]} 23. Bxh5 {[%clk 0:01:17.6]} 23... fxe3 {[%clk
0:01:49.5]} 24. Bxg6+ {[%clk 0:01:18]} 24... Nxg6 {[%clk 0:01:49]} 25. Qf7+
{[%clk 0:01:17.4]} 25... Kd7 {[%clk 0:01:46.4]} 26. Qe6+ {[%clk 0:01:17.7]}
26... Ke8 {[%clk 0:01:40]} 27. Qxg6+ {[%clk 0:01:14.9]} 27... Kd7 {[%clk
0:01:40.4]} 28. Nc6 {[%clk 0:01:06.2]} 28... e2 {[%clk 0:01:32.2]} 29. Qe6+
{[%clk 0:00:59.1]} 29... Ke8 {[%clk 0:01:31.6]} 30. Qxe2 {[%clk 0:00:59.6]}
30... Qd7 {[%clk 0:01:25.9]} 31. Rae1 {[%clk 0:00:57.8]} 31... Rc7 {[%clk
0:01:26.1]} 32. Qxa6 {[%clk 0:00:58.1]} 1-0

[Event "*** Titled Tuesday Blitz"]
[Site "Chess.com"]
[Date "2020.05.05"]
[Round "8"]
[White "Azoulas1"]
[Black "H3nriqueTV"]
[Result "1-0"]
[WhiteElo "1914"]
[BlackElo "2134"]
[TimeControl "180+1"]
[EndTime "11:33:42 PDT"]
[Termination "Azoulas1 won by resignation"]

1. e4 {[%clk 0:02:52]} 1... c5 {[%clk 0:02:59.9]} 2. Nf3 {[%clk 0:02:50.4]} 2...
b6 {[%clk 0:03:00.8]} 3. d4 {[%clk 0:02:49.4]} 3... cxd4 {[%clk 0:03:01.5]} 4.
Nxd4 {[%clk 0:02:48.2]} 4... Bb7 {[%clk 0:03:02.4]} 5. Nc3 {[%clk 0:02:46.8]}
5... a6 {[%clk 0:03:03.1]} 6. Be3 {[%clk 0:02:43.9]} 6... e6 {[%clk 0:03:03.5]}
7. Be2 {[%clk 0:02:37.4]} 7... Qc7 {[%clk 0:03:04]} 8. O-O {[%clk 0:02:34.7]}
8... Nf6 {[%clk 0:03:04.6]} 9. Bf3 {[%clk 0:02:32.4]} 9... Nc6 {[%clk
0:03:01.6]} 10. Re1 {[%clk 0:02:24.8]} 10... Ne5 {[%clk 0:03:00.8]} 11. Bf4
{[%clk 0:02:19]} 11... Nxf3+ {[%clk 0:03:00.2]} 12. Qxf3 {[%clk 0:02:16.8]}
12... e5 {[%clk 0:03:01.1]} 13. Bg3 {[%clk 0:02:13.7]} 13... d6 {[%clk
0:02:53.8]} 14. Nf5 {[%clk 0:02:07.3]} 14... g6 {[%clk 0:02:51.9]} 15. Ne3
{[%clk 0:02:06.3]} 15... Bg7 {[%clk 0:02:51.9]} 16. Rad1 {[%clk 0:02:04.9]}
16... O-O {[%clk 0:02:51.3]} 17. Rd2 {[%clk 0:02:01.2]} 17... b5 {[%clk
0:02:50.3]} 18. Bh4 {[%clk 0:01:58.2]} 18... Nh5 {[%clk 0:02:47.7]} 19. Ned5
{[%clk 0:01:56.1]} 19... Qa5 {[%clk 0:02:38.3]} 20. Red1 {[%clk 0:01:49.6]}
20... b4 {[%clk 0:02:33.6]} 21. Ne7+ {[%clk 0:01:43.8]} 21... Kh8 {[%clk
0:02:31.4]} 22. Ncd5 {[%clk 0:01:43.3]} 22... Qxa2 {[%clk 0:01:40.6]} 23. Nf6
{[%clk 0:01:30.9]} 23... Nf4 {[%clk 0:01:26.4]} 24. Rxd6 {[%clk 0:01:21.3]}
24... Qxb2 {[%clk 0:01:10.5]} 25. Bg5 {[%clk 0:01:13.2]} 25... Ne6 {[%clk
0:00:59.7]} 26. Rxe6 {[%clk 0:01:05]} 26... fxe6 {[%clk 0:01:00.6]} 27. Nxg6+
{[%clk 0:01:04.5]} 27... hxg6 {[%clk 0:00:47.8]} 28. Qh3+ {[%clk 0:01:04.5]} 1-0

[Event "*** Titled Tuesday Blitz"]
[Site "Chess.com"]
[Date "2020.05.05"]
[Round "8"]
[White "m-garcett"]
[Black "atwalcb"]
[Result "0-1"]
[WhiteElo "2040"]
[BlackElo "2238"]
[TimeControl "180+1"]
[EndTime "11:34:00 PDT"]
[Termination "atwalcb won by resignation"]

1. e4 {[%clk 0:02:59.6]} 1... d6 {[%clk 0:03:00.4]} 2. d4 {[%clk 0:02:58.6]}
2... Nf6 {[%clk 0:02:49.9]} 3. Nc3 {[%clk 0:02:53.7]} 3... Nbd7 {[%clk
0:02:50.1]} 4. f4 {[%clk 0:02:53]} 4... e5 {[%clk 0:02:50.4]} 5. fxe5 {[%clk
0:02:43.6]} 5... dxe5 {[%clk 0:02:50.1]} 6. Be3 {[%clk 0:02:42.1]} 6... Bb4
{[%clk 0:02:45.6]} 7. Bd3 {[%clk 0:02:40.2]} 7... exd4 {[%clk 0:02:26.5]} 8.
Bxd4 {[%clk 0:02:38.4]} 8... Nc5 {[%clk 0:02:25.2]} 9. Bxc5 {[%clk 0:02:21.4]}
9... Bxc5 {[%clk 0:02:22]} 10. Qe2 {[%clk 0:02:15.3]} 10... Ng4 {[%clk
0:02:10.3]} 11. Nh3 {[%clk 0:01:53.2]} 11... Qh4+ {[%clk 0:02:04.8]} 12. Kd2
{[%clk 0:01:41.7]} 12... Qh6+ {[%clk 0:01:52.2]} 13. Kd1 {[%clk 0:01:35.7]}
13... Ne3+ {[%clk 0:01:50.8]} 14. Ke1 {[%clk 0:01:33.6]} 14... Bxh3 {[%clk
0:01:48.2]} 15. gxh3 {[%clk 0:01:33.2]} 15... Qxh3 {[%clk 0:01:45.2]} 16. Rg1
{[%clk 0:01:21.8]} 16... Nxc2+ {[%clk 0:01:26.2]} 17. Bxc2 {[%clk 0:01:15.7]}
17... Bxg1 {[%clk 0:01:25]} 18. Qb5+ {[%clk 0:01:11.6]} 18... c6 {[%clk
0:01:22.2]} 19. Qg5 {[%clk 0:00:57.3]} 19... Qe3+ {[%clk 0:01:19]} 20. Qxe3
{[%clk 0:00:56.9]} 20... Bxe3 {[%clk 0:01:19.9]} 21. Ke2 {[%clk 0:00:57.5]}
21... Bd4 {[%clk 0:01:19.7]} 22. Rd1 {[%clk 0:00:50.1]} 22... Bxc3 {[%clk
0:01:19.3]} 23. bxc3 {[%clk 0:00:50]} 23... Rd8 {[%clk 0:01:19.5]} 24. Rg1
{[%clk 0:00:49]} 24... g6 {[%clk 0:01:19.5]} 25. Bb3 {[%clk 0:00:46.7]} 25...
Ke7 {[%clk 0:01:18.8]} 26. Rg5 {[%clk 0:00:46.3]} 26... f6 {[%clk 0:01:15.8]}
27. Ra5 {[%clk 0:00:45.2]} 27... a6 {[%clk 0:01:15.6]} 28. Ra4 {[%clk 0:00:44]}
28... Rhe8 {[%clk 0:01:13.1]} 29. Rb4 {[%clk 0:00:41.8]} 29... Rd7 {[%clk
0:01:13.3]} 30. Rb6 {[%clk 0:00:40.3]} 30... Kf8 {[%clk 0:01:12.2]} 31. Bc4
{[%clk 0:00:35.3]} 31... Rxe4+ {[%clk 0:01:11.3]} 0-1